Workbook

Sheet Cover
A3: Navigator
C5: =Client_Name -> ICAEW
C6: =Model_Name -> SP - Using OFFSET for Scenario Analysis.xlsm
C14: Primary Developer: Liam Bastick
C16: General Cover Notes:
C17: How OFFSET can assist with scenario analysis.
C21: Any queries, please e-mail: | G21: liam.bastick@sumproduct.com
C22: Website: | G22: www.sumproduct.com

Sheet Navigator
A1: Navigator
A2: =Model_Name -> SP - Using OFFSET for Scenario Analysis.xlsm
A3: Navigator
E4: Error Checks: | G4: =Overall_Error_Check -> 0
B7: 1 | C7: Table of Contents
F9: Cover
F10: Style Guide
F11: Scenario Illustration
F12: Model Parameters
F13: Timing
F14: Error Checks

Sheet Style Guide
A1: =IF(ISERROR(RIGHT(CELL("filename",A1),LEN(CELL("filename",A1))-FIND("]",CELL("filename",A1)))), "", RIGHT(CELL("filename",A1),LEN(CELL("filename",A1))-FIND("]",CELL("filename",A1)))) -> Style Guide
A2: =Model_Name -> SP - Using OFFSET for Scenario Analysis.xlsm
A3: Navigator
E4: Error Checks: | I4: =Overall_Error_Check -> 0
B6: =MAX($B$5:$B5)+1 -> 1 | C6: Formatting of Headers / Dividers
C8: Description | I8: Display | K8: Style Name
C10: Sheet Title | I10: =C10 -> Sheet Title | K10: Sheet Title
C11: Model Name | I11: =C11 -> Model Name | K11: Model Name
C13: Header 1 | I13: =C13 -> Header 1 | K13: Header 1
C14: Header 2 | I14: =C14 -> Header 2 | K14: Header 2
C15: Header 3 | I15: =C15 -> Header 3 | K15: Header 3
C16: Header 4 | I16: =C16 -> Header 4 | K16: Header 4
C18: Notes | I18: =C18 -> Notes | K18: Notes
C20: Table Heading | I20: =C20 -> Table Heading | K20: Table Heading
B23: =MAX($B$5:$B22)+1 -> 2 | C23: Individual Cell Styles
C25: Description | I25: Display | K25: Style Name
C27: Assumption | I27: Assumption | K27: =C27 -> Assumption
C29: Constraint | I29: =C29 -> Constraint | K29: =C29 -> Constraint
C31: Empty | K31: =C31 -> Empty
C33: Error Check | I33: 0 | K33: =C33 -> Error Check
C35: Hyperlink | I35: Hyperlink | K35: =C35 -> Hyperlink
C37: Internal Reference | I37: ='Error Checks'!E12 -> Not used | K37: =C37 -> Internal Reference
C39: Line Calculation | I39: 77 | K39: Line Calc
C41: Line Total | I41: =I39 -> 77 | K41: =C41 -> Line Total
C43: Parameter | I43: 365 | K43: =C43 -> Parameter
C45: Range Name Description | I45: Not_Named | K45: =C45 -> Range Name Description
C47: Row Reference | I47: =ROW(C47) -> 47 | K47: Row Ref
C49: Row Summary | I49: =I41 -> 77 | K49: =C49 -> Row Summary
C51: Units | I51: A$ | K51: =C51 -> Units
C53: WIP | K53: =C53 -> WIP
B56: =MAX($B$5:$B55)+1 -> 3 | C56: Numerical Styles
C58: Description | I58: Display | K58: Style Name
C60: Comma | I60: 123456.789 | K60: =C60 -> Comma
C62: Comma [0] | I62: -123456.789 | K62: Comma [0]
C64: Currency | I64: 123456.789 | K64: Currency
C66: Currency [0] | I66: 123456.789 | K66: Currency [0]
C68: Date | I68: =TODAY() -> 2016-06-11 | K68: =C68 -> Date
C70: Date Heading | I70: =TODAY() -> 2016-06-11 | K70: =C70 -> Date Heading
C72: Numbers 0 | I72: -123456.789 | K72: =C72 -> Numbers 0
C74: Percent | I74: 0.5 | K74: =C74 -> Percent

Sheet Scenario Illustration
A1: =IF(ISERROR(RIGHT(CELL("filename",A1),LEN(CELL("filename",A1))-FIND("]",CELL("filename",A1)))), "", RIGHT(CELL("filename",A1),LEN(CELL("filename",A1))-FIND("]",CELL("filename",A1)))) -> Scenario Illustration
A2: =Model_Name -> SP - Using OFFSET for Scenario Analysis.xlsm
A3: Navigator
B4: Error Checks: | H4: =Overall_Error_Check -> 0
B6: =MAX($B$5:$B5)+1 -> 1 | C6: Scenario Table
C8: Assumptions
D10: =C6 -> Scenario Table
F12: Scenario Number | H12: 1
F16: Assumptions | L16: Amts Used | N16: =M16+1 -> 1 | O16: =N16+1 -> 2 | P16: 3 | Q16: 4 | R16: 5
F17: Scenario Name | L17: =OFFSET(M17,,$H$12) -> Base | N17: Base | O17: ="Scenario "&O$16 -> Scenario 2 | P17: ="Scenario "&P$16 -> Scenario 3 | Q17: Scenario 4 | R17: Scenario 5 | S17: Scenario | T17: Scenario | U17: Scenario
F18: Base Year Unit Price | L18: =OFFSET(M18,,$H$12) -> 3.7 | N18: 3.7 | O18: 4.15 | P18: 3 | Q18: 2.85 | R18: 2.99 | S18: 3.99 | T18: 4.99 | U18: 5.99
F19: Unit Price Growth Rate | L19: =OFFSET(M19,,$H$12) -> 0.02 | N19: 0.02 | O19: 0.03 | P19: 0.04 | Q19: 0.05 | R19: 0.06 | S19: 1.06 | T19: 2.06 | U19: 3.06
F20: Base Year Volume | L20: 80000 | N20: 80000 | O20: 85000 | P20: 82500 | Q20: 77900 | R20: 83000 | S20: 83000 | T20: 83000 | U20: 83000
F21: Volume Increase p.a. | L21: 200 | N21: 200 | O21: 250 | P21: 300 | Q21: 200 | R21: 150 | S21: 150 | T21: 150 | U21: 150
F22: Unit Cost Price | L22: 1 | N22: 1 | O22: 1.3 | P22: 1.1 | Q22: 1.25 | R22: 1.29 | S22: 1.29 | T22: 1.29 | U22: 1.29
F23: Unit Cost Growth Rate | L23: 0.03 | N23: 0.03 | O23: 0.03 | P23: 0.03 | Q23: 0.03 | R23: 0.03 | S23: 0.03 | T23: 0.03 | U23: 0.03
F24: Tax Rate | L24: 0.28 | N24: 0.28 | O24: 0.3 | P24: 0.3 | Q24: 0.28 | R24: 0.33 | S24: 1.33 | T24: 2.33 | U24: 3.33
D29: Basic Outputs
N31: 1 | O31: 2 | P31: 3 | Q31: 4
L32: Unit Price | N32: =IF(N$31=1,$L$18,M32*(1+$L$19)) -> 3.7 | O32: =IF(O$31=1,$L$18,N32*(1+$L$19)) -> 3.774 | P32: =IF(P$31=1,$L$18,O32*(1+$L$19)) -> 3.84948 | Q32: =IF(Q$31=1,$L$18,P32*(1+$L$19)) -> 3.9264696
L33: Volume | N33: =IF(N$31=1,$L$20,M33+$L$21) -> 80000 | O33: =IF(O$31=1,$L$20,N33+$L$21) -> 80200 | P33: =IF(P$31=1,$L$20,O33+$L$21) -> 80400 | Q33: =IF(Q$31=1,$L$20,P33+$L$21) -> 80600
L34: Unit Cost | N34: =IF(N$31=1,$L$22,M34*(1+$L$23)) -> 1 | O34: =IF(O$31=1,$L$22,N34*(1+$L$23)) -> 1.03 | P34: =IF(P$31=1,$L$22,O34*(1+$L$23)) -> 1.0609 | Q34: =IF(Q$31=1,$L$22,P34*(1+$L$23)) -> 1.092727
L35: Tax Rate | N35: =$L$24 -> 0.28 | O35: =$L$24 -> 0.28 | P35: 0.28 | Q35: 0.28
N38: =N31 -> 1 | O38: =O31 -> 2 | P38: 3 | Q38: 4
L39: Revenue | N39: =N33*N32 -> 296000 | O39: =O33*O32 -> 302674.8 | P39: =P33*P32 -> 309498.192 | Q39: =Q33*Q32 -> 316473.4498
L40: Costs | N40: =-N34*N33 -> -80000 | O40: =-O34*O33 -> -82606 | P40: =-P34*P33 -> -85296.36 | Q40: =-Q34*Q33 -> -88073.7962
L41: Profit Before Tax | N41: =SUM(N39:N40) -> 216000 | O41: =SUM(O39:O40) -> 220068.8 | P41: =SUM(P39:P40) -> 224201.832 | Q41: =SUM(Q39:Q40) -> 228399.6536
L42: Tax | N42: =-N41*N35 -> -60480 | O42: =-O41*O35 -> -61619.264 | P42: =-P41*P35 -> -62776.51296 | Q42: =-Q41*Q35 -> -63951.903
L43: Profit After Tax | N43: =SUM(N41:N42) -> 155520 | O43: =SUM(O41:O42) -> 158449.536 | P43: =SUM(P41:P42) -> 161425.319 | Q43: =SUM(Q41:Q42) -> 164447.7506

Sheet Model Parameters
A1: =IF(ISERROR(RIGHT(CELL("filename",A1),LEN(CELL("filename",A1))-FIND("]",CELL("filename",A1)))), "", RIGHT(CELL("filename",A1),LEN(CELL("filename",A1))-FIND("]",CELL("filename",A1)))) -> Model Parameters
A2: =Model_Name -> SP - Using OFFSET for Scenario Analysis.xlsm
A3: Navigator
E4: Error Checks: | I4: =Overall_Error_Check -> 0
B6: =MAX($B$5:$B5)+1 -> 1 | C6: General
C8: Key Inputs
E10: General
E11: Model Name | G11: =IF(ISERROR(OR(FIND("[",CELL("filename",A1)),FIND("]",CELL("filename",A1)))),"",MID(CELL("filename",A1),FIND("[",CELL("filename",A1))+1,FIND("]",CELL("filename",A1))-FIND("[",CELL("filename",A1))-1)) -> SP - Using OFFSET for Scenario Analysis.xlsm
E12: Client Name | G12: ICAEW
B15: =MAX($B$5:$B14)+1 -> 2 | C15: General Range Names
C17: Technical Assumptions
E19: Days in Year | G19: 365
E20: Months in Month | G20: 1
E21: Months in Quarter | G21: 3
E22: Months in Half Yr | G22: 6
E23: Months in Year | G23: 12
E24: Quarters in Year | G24: 4
E26: Rounding Accuracy | G26: 5
E28: Very Large Number | G28: 1e+99
E29: Very Small Number | G29: 1e-08
E31: Thousand | G31: 1000

Sheet Timing
A1: =IF(ISERROR(RIGHT(CELL("filename",A1),LEN(CELL("filename",A1))-FIND("]",CELL("filename",A1)))), "", RIGHT(CELL("filename",A1),LEN(CELL("filename",A1))-FIND("]",CELL("filename",A1)))) -> Timing
A2: =Model_Name -> SP - Using OFFSET for Scenario Analysis.xlsm
A3: Navigator
B4: Error Checks: | F4: =Overall_Error_Check -> 0
J5: =J$7 -> 2016-01-31 | K5: =K$7 -> 2016-02-29 | L5: =L$7 -> 2016-03-31 | M5: =M$7 -> 2016-04-30 | N5: =N$7 -> 2016-05-31 | O5: =O$7 -> 2016-06-30 | P5: 2016-07-31 | Q5: 2016-08-31 | R5: 2016-09-30 | S5: 2016-10-31 | T5: 2016-11-30 | U5: 2016-12-31
C6: Start Date | J6: =IF(J$9=1,Model_Start_Date,I$7+1) -> 2016-01-01 | K6: 2016-02-01 | L6: 2016-03-01 | M6: 2016-04-01 | N6: 2016-05-01 | O6: 2016-06-01 | P6: 2016-07-01 | Q6: 2016-08-01 | R6: 2016-09-01 | S6: 2016-10-01 | T6: 2016-11-01 | U6: 2016-12-01
C7: End Date | J7: =EOMONTH(J$6,MOD(Periodicity+Reporting_Month_Factor-MONTH(J$6),Periodicity)) -> 2016-01-31 | K7: 2016-02-29 | L7: 2016-03-31 | M7: 2016-04-30 | N7: 2016-05-31 | O7: 2016-06-30 | P7: 2016-07-31 | Q7: 2016-08-31 | R7: 2016-09-30 | S7: 2016-10-31 | T7: 2016-11-30 | U7: 2016-12-31
C8: Number of Days | J8: =J7-J6+1 -> 31 | K8: =K7-K6+1 -> 29 | L8: 31 | M8: 30 | N8: 31 | O8: =O7-O6+1 -> 30 | P8: 31 | Q8: 31 | R8: 30 | S8: 31 | T8: 30 | U8: 31
C9: Counter | J9: =N(I$9)+1 -> 1 | K9: =N(J$9)+1 -> 2 | L9: 3 | M9: 4 | N9: 5 | O9: =N(N$9)+1 -> 6 | P9: =N(O$9)+1 -> 7 | Q9: =N(P$9)+1 -> 8 | R9: =N(Q$9)+1 -> 9 | S9: =N(R$9)+1 -> 10 | T9: =N(S$9)+1 -> 11 | U9: =N(T$9)+1 -> 12
B11: =MAX($B$10:$B10)+1 -> 1 | C11: Timing Assumptions
C13: Data (do not change once modelling has commenced)
D15: Model Start Date | H15: 2016-01-01
D17: Number of Months in a Full Period | H17: 1
D19: Example Reporting Month | H19: 12 | I19: ="e.g. "&TEXT(DATE(YEAR(Model_Start_Date)+IF(Example_Reporting_Month<MONTH(Model_Start_Date),1,0),Example_Reporting_Month+1,1)-1,"dd-Mmm-yy") -> e.g. 31-Dec-16
D21: Reporting Month Factor | H21: =MOD(Example_Reporting_Month-1,Periodicity)+1 -> 1
D23: Months per Year | H23: 12

Sheet Error Checks
A1: =IF(ISERROR(RIGHT(CELL("filename",A1),LEN(CELL("filename",A1))-FIND("]",CELL("filename",A1)))), "", RIGHT(CELL("filename",A1),LEN(CELL("filename",A1))-FIND("]",CELL("filename",A1)))) -> Error Checks
A2: =Model_Name -> SP - Using OFFSET for Scenario Analysis.xlsm
A3: Navigator
B4: Error Checks: | F4: =Overall_Error_Check -> 0
B6: =MAX($B$5:$B5)+1 -> 1 | C6: Error Checks
C8: Summary of Errors
D10: Assumptions
E12: Not used
E17: =C8 -> Summary of Errors | I17: =MIN(1,SUM(I11:I15)) -> 0
